fUST/lending_fUST_20251015
["ID","MTS","AMOUNT","RATE_DAILY","PERIOD"]
[391279400,1760465440804,-8359.3072822,0.00029394,2]
[391279402,1760465440813,-1625.489778,0.000294,3]
[391279404,1760465440822,-2416.72109631,0.00029401,2]
[391279406,1760465440832,-3502.0,0.00029432,7]
[391279408,1760465440841,-4194.87209712,0.00029434,2]
[391279410,1760465440850,-583086.5984,0.00029444,2]
[391279412,1760465440860,-217.839464,0.00029494,15]
[391279414,1760465440869,-212.461503,0.00029494,15]
[391279416,1760465440879,-2416.72109631,0.00029501,2]
[391279418,1760465440887,-600.0,0.00029521,2]
[391279420,1760465440896,-217.839464,0.00029585,2]
[391279422,1760465440906,-212.461503,0.00029585,2]
[391279424,1760465440915,-500.0,0.00029589,30]
[391279426,1760465440924,-500.0,0.00029589,30]
[391279429,1760465440934,-500.0,0.00029589,30]
[391279431,1760465440943,-500.0,0.00029589,30]
[391279433,1760465440952,-500.0,0.00029589,30]
[391279435,1760465440962,-500.0,0.00029589,30]
[391279437,1760465440971,-500.0,0.00029589,30]
[391279439,1760465440980,-500.0,0.00029589,30]
[391279440,1760465440989,-500.0,0.00029589,30]
[391279442,1760465440998,-500.0,0.00029589,30]
[391279444,1760465441007,-500.0,0.00029589,30]
[391279446,1760465441016,-324.4654374,0.00029589,30]
[391279448,1760465441027,-607.0,0.00029595,7]
[391279450,1760465441037,-607.0,0.00029597,7]
[391279452,1760465441046,-1000.0,0.000296,2]
[391279454,1760465441055,-2416.72109631,0.00029601,2]
[391279456,1760465441063,-607.0,0.00029641,2]
[391279458,1760465441072,-607.0,0.00029642,2]
[391279460,1760465441085,-21513.87502507,0.00029673,2]
[391279462,1760465441094,-217.839464,0.00029679,30]
[391279464,1760465441103,-212.461503,0.00029679,30]
[391279466,1760465441112,-2416.72109631,0.00029701,2]
[391279468,1760465441122,-150.0,0.00029744,2]
[391279470,1760465441130,-150.109,0.00029744,2]
[391279472,1760465441139,-2416.72109631,0.00029801,2]
[391279474,1760465441148,-600.0,0.00029825,2]
[391279476,1760465441159,-217.839464,0.00029829,15]
[391279478,1760465441168,-212.461503,0.00029829,15]
[391279480,1760465441176,-150.0,0.00029841,2]
[391279482,1760465441186,-150.0,0.00029841,2]
[391279484,1760465441194,-1060.0,0.00029847,2]
[391279486,1760465441203,-5533.0,0.00029898,2]
[391279488,1760465441212,-1500.0,0.000299,3]
[391279490,1760465441221,-2416.72109631,0.00029901,2]
[391279492,1760465441230,-204.0,0.0002991,25]
[391279494,1760465441239,-162.9892445,0.00029981,30]
[391279496,1760465441248,-355.4037414,0.00029981,30]
[391279498,1760465441258,-189.8496045,0.00029981,30]
[391279500,1760465441267,-189.8496045,0.00029981,30]
[391279502,1760465441276,-189.8496045,0.00029981,30]
[391279504,1760465441285,-252.0,0.0003,60]
[391279506,1760465441294,-3000.0,0.0003,10]
[391279508,1760465441303,-4023.5,0.0003,12]
[391279510,1760465441312,-171.013,0.0003,2]
[391279512,1760465441321,-1103.0,0.0003,7]
[391279514,1760465441330,-153.91125,0.0003,2]
[391279516,1760465441339,-325.978489,0.00030014,30]
[391279518,1760465441348,-162.9892445,0.00030014,30]
[391279520,1760465441357,-162.8372929,0.00030014,30]
[391279522,1760465441366,-1000.0,0.00030049,2]
[391279524,1760465441375,-1000.0,0.00030049,2]
[391279526,1760465441384,-1062.2262,0.00030049,2]
[391279528,1760465441393,-177.4483746,0.00030063,2]
[391279530,1760465441403,-2561.4438719,0.00030063,2]
[391279532,1760465441411,-152.9239622,0.00030063,2]
[391279534,1760465441420,-163.1107949,0.00030063,2]
[391279536,1760465441429,-1152.0,0.00030066,2]
[391279538,1760465441439,-1158.6036512,0.00030069,2]
[391279540,1760465441447,-1750.99685178,0.00030071,2]
[391279542,1760465441457,-175.41580806,0.00030071,2]
[391279544,1760465441466,-1486.0,0.00030079,7]
[391279546,1760465441474,-1000.0,0.000301,2]
[391279548,1760465441484,-761.0,0.000301,2]
[391279550,1760465441493,-800.0,0.00030101,2]
[391279552,1760465441502,-800.0,0.00030104,2]
[391279554,1760465441513,-800.0,0.00030104,2]
[391279556,1760465441522,-217.839464,0.00030118,30]
[391279558,1760465441532,-212.461503,0.00030118,30]
[391279560,1760465441542,-800.0,0.00030121,2]
[391279562,1760465441552,-600.0,0.0003013,2]
[391279564,1760465441562,-780.53451764,0.00030132,120]
[391279565,1760465441572,-800.0,0.00030133,2]
[391279567,1760465441583,-6818.94,0.00030136,8]
[391279570,1760465441598,-800.0,0.00030154,2]
[391279572,1760465441607,-1300.0,0.00030161,7]
[391279574,1760465441620,-217.839464,0.00030165,15]
[391279576,1760465441629,-212.461503,0.00030165,15]
[391279578,1760465441639,-811965.91137668,0.00030171,2]
[391279581,1760465441655,-16502.00000004,0.00030171,2]
[391279589,1760465441727,-390.6123134,0.00030171,2]
[391279591,1760465441739,-1865.65925509,0.00030171,2]
[391279593,1760465441750,-1201.41860945,0.00030171,2]
[391279595,1760465441762,-8175.51957529,0.00030171,2]
[391279611,1760465441899,-22055.9685126,0.00030171,2]
[391280057,1760465446361,-1000.0,0.000301,2]
[391280059,1760465446371,-154.59,0.00030161,3]
[391280063,1760465446391,-27675.53148453,0.00030171,2]
[391280066,1760465446414,-1075.64673226,0.00030171,2]
[391280068,1760465446426,-933765.79924066,0.00030171,2]
[391280070,1760465446434,-217.839464,0.00030171,2]
[391280072,1760465446443,-212.461503,0.00030171,2]
[391280074,1760465446452,-151.0,0.00030171,30]
[391280076,1760465446461,-631.338472,0.00030171,30]
[391280078,1760465446470,-631.338472,0.00030171,30]
[391280080,1760465446479,-631.338472,0.00030171,30]
[391280082,1760465446487,-151.0,0.00030171,30]
[391280084,1760465446497,-631.338472,0.00030171,30]
[391280086,1760465446506,-151.0,0.00030171,30]
[391280088,1760465446515,-151.0,0.00030171,30]
[391280090,1760465446523,-807.552167,0.00030171,30]
[391280092,1760465446533,-151.0,0.00030171,30]
[391280094,1760465446542,-807.552167,0.00030171,30]
[391280096,1760465446551,-151.0,0.00030171,30]
[391280098,1760465446559,-151.0,0.00030171,30]
[391280100,1760465446568,-807.552167,0.00030171,30]
[391280102,1760465446577,-151.0,0.00030171,30]
[391280104,1760465446586,-807.552167,0.00030171,30]
[391280106,1760465446595,-151.0,0.00030171,30]
[391280108,1760465446603,-151.0,0.00030171,30]
[391280110,1760465446612,-151.0,0.00030171,30]
[391280112,1760465446621,-151.0,0.00030171,30]
[391280114,1760465446629,-151.0,0.00030171,30]
[391280116,1760465446638,-151.0,0.00030171,30]
[391280118,1760465446647,-171.011947,0.00030171,30]
[391280120,1760465446656,-151.0,0.00030171,30]
[391280122,1760465446666,-171.011947,0.00030171,30]
[391280124,1760465446675,-171.011947,0.00030171,30]
[391280126,1760465446684,-171.011947,0.00030171,30]
[391280127,1760465446692,-151.0,0.00030171,30]
[391280128,1760465446701,-319.534125,0.00030171,30]
[391280129,1760465446710,-151.0,0.00030171,30]
[391280130,1760465446719,-352.922601,0.00030171,30]
[391280131,1760465446727,-319.534125,0.00030171,30]
[391280132,1760465446736,-151.0,0.00030171,30]
[391280133,1760465446746,-352.922601,0.00030171,30]
[391280134,1760465446755,-319.534125,0.00030171,30]
[391280136,1760465446764,-151.0,0.00030171,30]
[391280138,1760465446773,-352.922601,0.00030171,30]
[391280140,1760465446782,-319.534125,0.00030171,30]
[391280142,1760465446791,-250.145292,0.00030171,30]
[391280144,1760465446800,-352.922601,0.00030171,30]
[391280145,1760465446809,-250.145292,0.00030171,30]
[391280147,1760465446818,-250.145292,0.00030171,30]
[391280149,1760465446827,-151.0,0.00030171,30]
[391280151,1760465446837,-151.0,0.00030171,30]
[391280153,1760465446845,-250.145292,0.00030171,30]
[391280155,1760465446854,-151.0,0.00030171,30]
[391280157,1760465446863,-151.0,0.00030171,30]
[391280159,1760465446872,-151.0,0.00030171,30]
[391280161,1760465446881,-241.752853,0.00030171,30]
[391280163,1760465446890,-4557.997837,0.00030171,30]
[391280165,1760465446899,-151.0,0.00030171,30]
[391280167,1760465446908,-151.0,0.00030171,30]
[391280169,1760465446917,-151.0,0.00030171,30]
[391280171,1760465446927,-4557.997837,0.00030171,30]
[391280173,1760465446936,-241.752853,0.00030171,30]
[391280175,1760465446945,-151.0,0.00030171,30]
[391280176,1760465446955,-151.0,0.00030171,30]
[391280178,1760465446964,-4557.997837,0.00030171,30]
[391280180,1760465446973,-241.752853,0.00030171,30]
[391280181,1760465446983,-4557.997837,0.00030171,30]
[391280182,1760465446993,-241.752853,0.00030171,30]
[391280183,1760465447002,-151.0,0.00030171,30]
[391280184,1760465447013,-195.242804,0.00030171,30]
[391280185,1760465447022,-280.063028,0.00030171,30]
[391280186,1760465447032,-280.063028,0.00030171,30]
[391280187,1760465447041,-280.063028,0.00030171,30]
[391280188,1760465447050,-151.0,0.00030171,30]
[391280189,1760465447059,-280.063028,0.00030171,30]
[391280190,1760465447068,-206.640198,0.00030171,15]
[391280191,1760465447077,-206.640198,0.00030171,15]
[391280192,1760465447090,-206.640198,0.00030171,15]
[391280193,1760465447099,-206.640198,0.00030171,15]
[391280194,1760465447108,-151.0,0.00030171,30]
[391280195,1760465447117,-151.0,0.00030171,30]
[391280196,1760465447128,-151.0,0.00030171,30]
[391280197,1760465447137,-151.0,0.00030171,30]
[391280198,1760465447146,-305.185903,0.00030171,30]
[391280199,1760465447155,-305.185903,0.00030171,30]
[391280200,1760465447164,-151.0,0.00030171,30]
[391280201,1760465447173,-305.185903,0.00030171,30]
[391280202,1760465447182,-305.185903,0.00030171,30]
[391280203,1760465447191,-151.0,0.00030171,30]
[391280204,1760465447200,-151.0,0.00030171,30]
[391280205,1760465447209,-151.0,0.00030171,30]
[391280206,1760465447218,-151.0,0.00030171,30]
[391280207,1760465447226,-151.0,0.00030171,30]
[391280208,1760465447235,-151.0,0.00030171,30]
[391280209,1760465447244,-151.0,0.00030171,30]
[391280210,1760465447253,-609.675171,0.00030171,30]
[391280211,1760465447263,-609.675171,0.00030171,30]
[391280212,1760465447272,-151.0,0.00030171,30]
[391280213,1760465447281,-151.0,0.00030171,30]
[391280214,1760465447290,-151.0,0.00030171,30]
[391280215,1760465447300,-609.675171,0.00030171,30]
[391280216,1760465447309,-151.0,0.00030171,30]
[391280217,1760465447318,-609.675171,0.00030171,30]
[391280218,1760465447327,-151.0,0.00030171,30]
[391280219,1760465447337,-151.0,0.00030171,30]
[391280220,1760465447346,-190.809815,0.00030171,30]
[391280221,1760465447356,-190.809815,0.00030171,30]
[391280222,1760465447365,-190.809815,0.00030171,30]
[391280223,1760465447374,-194.538147,0.00030171,30]
[391280224,1760465447383,-190.809815,0.00030171,30]
[391280225,1760465447391,-194.538147,0.00030171,30]
[391280226,1760465447400,-151.0,0.00030171,30]
[391280227,1760465447409,-194.538147,0.00030171,30]
[391280228,1760465447418,-227.480261,0.00030171,30]
[391280229,1760465447426,-194.538147,0.00030171,30]
[391280230,1760465447435,-151.0,0.00030171,30]
[391280231,1760465447444,-151.0,0.00030171,30]
[391280232,1760465447453,-151.0,0.00030171,30]
[391280233,1760465447462,-151.0,0.00030171,30]
[391280234,1760465447471,-151.0,0.00030171,30]
[391280235,1760465447480,-151.0,0.00030171,30]
[391280236,1760465447489,-151.0,0.00030171,30]
[391280237,1760465447497,-151.0,0.00030171,30]
[391280238,1760465447507,-151.0,0.00030171,30]
[391280239,1760465447517,-151.0,0.00030171,30]
[391280240,1760465447526,-151.0,0.00030171,30]
[391280241,1760465447536,-151.0,0.00030171,30]
[391280242,1760465447545,-151.0,0.00030171,30]
[391280243,1760465447554,-151.0,0.00030171,30]
[391280244,1760465447563,-151.0,0.00030171,30]
[391280245,1760465447571,-151.0,0.00030171,30]
[391280246,1760465447580,-151.0,0.00030171,30]
[391280247,1760465447589,-151.0,0.00030171,30]
[391280248,1760465447597,-151.0,0.00030171,30]
[391280249,1760465447606,-156.476173,0.00030171,30]
[391280250,1760465447615,-156.476173,0.00030171,30]
[391280251,1760465447624,-151.0,0.00030171,30]
[391280252,1760465447632,-160.935806,0.00030171,2]
[391280253,1760465447641,-156.476173,0.00030171,30]
[391280254,1760465447650,-160.935806,0.00030171,2]
[391280255,1760465447658,-156.476173,0.00030171,30]
[391280256,1760465447667,-160.935806,0.00030171,2]
[391280257,1760465447676,-160.935806,0.00030171,2]
[391280258,1760465447685,-151.0,0.00030171,30]
[391280259,1760465447694,-800.0,0.00030194,2]
[391280260,1760465447703,-800.0,0.00030197,2]
[391280261,1760465447714,-800.0,0.00030199,2]
[391280262,1760465447722,-300.0,0.000302,2]
[391280263,1760465447731,-300.0,0.000302,2]
[391280264,1760465447740,-144184.92,0.000302,3]
[391280265,1760465447748,-150.0,0.000302,2]
[391280266,1760465447757,-150.125713,0.000302,2]
[391280267,1760465447767,-250.0,0.000302,7]
[391280268,1760465447776,-165.6,0.000302,7]
[391280269,1760465447785,-417.15472785,0.000302,3]
[391280270,1760465447794,-607.0,0.00030208,7]
[391280271,1760465447802,-500.0,0.00030241,11]
[391280272,1760465447811,-500.0,0.00030241,11]
[391280273,1760465447819,-800.0,0.00030274,2]
[391280274,1760465447828,-607.0,0.00030279,2]
[391280275,1760465447837,-3502.0,0.00030286,2]
[391280276,1760465447846,-800.0,0.00030287,2]
[391280277,1760465447855,-800.0,0.00030289,2]
[391280278,1760465447863,-800.0,0.00030291,2]
[391280279,1760465447872,-4199.0,0.00030292,2]
[391280280,1760465447881,-280.4,0.000303,2]
[391280281,1760465447889,-150.0,0.000303,10]
[391280282,1760465447898,-1486.0,0.00030306,2]
[391280283,1760465447908,-800.0,0.00030319,2]
[391280284,1760465447917,-500.0,0.00030338,7]
[391280285,1760465447925,-2200.0,0.00030338,2]
[391280286,1760465447935,-46880.25271408,0.0003034,2]
[391280287,1760465447943,-184.85437379,0.0003034,2]
[391280288,1760465447952,-1008.741032,0.0003036,5]
[391280289,1760465447960,-800.0,0.00030362,2]
[391280290,1760465447969,-200.0,0.00030367,10]
[391280291,1760465447978,-151.0,0.00030368,30]
[391280292,1760465447987,-151.0,0.00030368,30]
[391280293,1760465447996,-183.360305,0.00030368,30]
[391280294,1760465448004,-183.360305,0.00030368,30]
[391280295,1760465448014,-183.360305,0.00030368,30]
[391280296,1760465448023,-183.360305,0.00030368,30]
[391280297,1760465448032,-151.0,0.00030368,30]
[391280298,1760465448041,-151.0,0.00030368,30]
[391280299,1760465448050,-151.0,0.00030368,30]
[391280300,1760465448059,-151.0,0.00030368,30]
[391280301,1760465448068,-151.0,0.00030368,30]
[391280302,1760465448078,-151.0,0.00030368,30]
[391280303,1760465448091,-151.0,0.00030368,2]
[391280304,1760465448100,-151.0,0.00030368,30]
[391280305,1760465448109,-151.0,0.00030368,30]
[391280306,1760465448118,-151.0,0.00030368,30]
[391280307,1760465448129,-151.0,0.00030368,30]
[391280308,1760465448137,-151.0,0.00030368,30]
[391280309,1760465448146,-151.0,0.00030368,30]
[391280310,1760465448156,-151.0,0.00030368,30]
[391280311,1760465448166,-151.0,0.00030368,30]
[391280312,1760465448175,-151.0,0.00030368,30]
[391280313,1760465448184,-151.0,0.00030368,30]
[391280314,1760465448193,-151.0,0.00030368,30]
[391280315,1760465448202,-151.0,0.00030368,30]
[391280316,1760465448210,-151.0,0.00030368,30]
[391280318,1760465448219,-878.449009,0.00030368,30]
[391280320,1760465448228,-878.449009,0.00030368,30]
[391280321,1760465448238,-878.449009,0.00030368,30]
[391280322,1760465448247,-151.0,0.00030368,30]
[391280323,1760465448256,-878.449009,0.00030368,30]
[391280324,1760465448265,-151.0,0.00030368,30]
[391280325,1760465448274,-151.0,0.00030368,30]
[391280326,1760465448284,-151.0,0.00030368,30]
[391280327,1760465448292,-151.0,0.00030368,30]
[391280328,1760465448301,-151.0,0.00030368,30]
[391280329,1760465448310,-151.0,0.00030368,30]
[391280330,1760465448320,-151.0,0.00030368,30]
[391280331,1760465448329,-151.813933,0.00030368,30]
[391280332,1760465448338,-71235.97187886,0.00030371,7]
[391280846,1760465539791,625.46,0.00030471,60]
[391280847,1760465540144,625.46,0.00030471,60]
[391280848,1760465540346,625.46,0.00030471,60]
[391280849,1760465540584,625.46,0.00030471,60]
[391280850,1760465540824,625.46,0.00030471,60]
[391280851,1760465541061,625.46,0.00030471,60]
[391280852,1760465541292,625.46,0.00030471,60]
[391280853,1760465541533,625.46,0.00030471,60]
[391280854,1760465541764,625.46,0.00030471,60]
[391280855,1760465542020,625.46,0.00030471,60]
[391280856,1760465542267,625.46,0.00030471,60]
[391280857,1760465542518,625.46,0.00030471,60]
[391280858,1760465542754,625.46,0.00030471,60]
[391280859,1760465542994,625.46,0.00030471,60]
[391280860,1760465543246,625.46,0.00030471,60]
[391280861,1760465543516,625.46,0.00030471,60]
[391280862,1760465543804,625.46,0.00030471,60]
[391280863,1760465544061,625.46,0.00030471,60]
[391280864,1760465544294,625.46,0.00030471,60]
[391280865,1760465544537,625.46,0.00030471,60]
[391280866,1760465544771,625.46,0.00030471,60]
[391280867,1760465545017,625.46,0.00030471,60]
[391280868,1760465545251,625.46,0.00030471,60]
[391280869,1760465545655,625.65825939,0.00030471,60]
[391280870,1760465547459,500.0,0.00030471,60]
[391280871,1760465547720,500.0,0.00030471,60]
[391280872,1760465548010,500.0,0.00030471,60]
[391280873,1760465548254,500.0,0.00030471,60]
[391280874,1760465548526,500.0,0.00030471,60]
[391280875,1760465548858,500.0,0.00030471,60]
[391280876,1760465549128,500.0,0.00030471,60]
[391280877,1760465549378,500.0,0.00030471,60]
[391280878,1760465549619,500.0,0.00030471,60]
[391280879,1760465549879,500.0,0.00030471,60]
[391280880,1760465550115,500.0,0.00030471,60]
[391280881,1760465550433,500.0,0.00030471,60]
[391280882,1760465550686,500.0,0.00030471,60]
[391280883,1760465550964,150.71529067,0.00030471,60]
[391280884,1760465556487,500.0,0.00030471,60]
[391280885,1760465566499,500.0,0.00030471,60]
[391280886,1760465566747,500.0,0.00030471,60]
[391280887,1760465566974,500.0,0.00030471,60]
[391280888,1760465567340,500.0,0.00030471,60]
[391280889,1760465599915,500.0,0.00030634,60]
[391280890,1760465605308,500.0,0.00030634,60]
[391280891,1760465605579,492.74,0.00030634,60]
[391280903,1760465647309,500.0,0.00030634,60]
[391280904,1760465647540,287.21287878,0.00030634,60]
[391280908,1760465649347,500.0,0.00030634,60]
[391280910,1760465649584,500.0,0.00030634,60]
[391280911,1760465649819,500.0,0.00030634,60]
[391280912,1760465652804,500.0,0.00030634,60]
[391280913,1760465653072,500.0,0.00030634,60]
[391280914,1760465653320,500.0,0.00030634,60]
[391280915,1760465653598,634.5,0.00030634,60]
[391280916,1760465659731,4709.45500292,0.00019,2]
[391280917,1760465684391,500.0,0.00030634,60]
[391280918,1760465684619,500.0,0.00030634,60]
[391280919,1760465684859,500.0,0.00030634,60]
[391280920,1760465685227,500.0,0.00030634,60]
[391280921,1760465685458,500.0,0.00030634,60]
[391280922,1760465685688,500.0,0.00030634,60]
[391280923,1760465685922,500.0,0.00030634,60]
[391280924,1760465686200,500.0,0.00030634,60]
[391280925,1760465686443,500.0,0.00030634,60]
[391280926,1760465686682,619.88,0.00030634,60]
[391280927,1760465688624,500.0,0.00030634,60]
[391280928,1760465688917,500.0,0.00030634,60]
[391280929,1760465689149,228.55,0.00030634,60]
[391280930,1760465713102,500.0,0.00019,2]
[391280931,1760465717579,500.0,0.00030634,60]
[391280932,1760465719243,500.0,0.00030634,60]
[391280933,1760465719493,506.22985895,0.00030634,60]
[391280934,1760465727559,500.0,0.00030634,60]
[391280935,1760465756428,500.0,0.00030634,60]
[391280936,1760465756664,500.0,0.00030634,60]
[391280937,1760465756917,500.0,0.00030634,60]
[391280953,1760466215283,500.0,0.00030453,60]
[391280954,1760466215523,500.0,0.00030453,60]
[391280955,1760466215749,500.0,0.00030453,60]
[391280956,1760466216003,500.0,0.00030453,60]
[391280957,1760466216254,500.0,0.00030453,60]
[391280958,1760466216512,414.65301005,0.00030453,60]
[391281034,1760466632384,-150.0,0.00019605,2]
[391281036,1760466632394,-200.0,0.00019605,2]
[391281038,1760466632406,-216.67,0.00019962,2]
[391281040,1760466632416,-172.5,0.00020205,2]
[391281042,1760466632425,-300.0,0.00020216,2]
[391281044,1760466632435,-1200.0,0.00020216,2]
[391281046,1760466632446,-300.0,0.00020216,2]
[391281048,1760466632455,-375.48301005,0.00020217,2]
[391281050,1760466632467,-2116.82283528,0.00020217,2]
[391281142,1760466638397,-13658.16584837,0.00020217,2]
[391281143,1760466638407,-300.0,0.00020621,2]
[391281144,1760466638418,-300.0,0.00020621,2]
[391281145,1760466638428,-300.0,0.00020621,2]
[391281146,1760466638439,-300.0,0.00020621,2]
[391281147,1760466638448,-300.0,0.00020621,2]
[391281148,1760466638458,-300.0,0.00020621,2]
[391281149,1760466638468,-300.0,0.00020621,2]
[391281150,1760466638480,-300.0,0.00020621,2]
[391281151,1760466638490,-300.0,0.00020621,2]
[391281152,1760466638501,-300.0,0.00020621,2]
[391281153,1760466638511,-300.0,0.00020621,2]
[391281154,1760466638520,-300.0,0.00020621,2]
[391281155,1760466638530,-300.0,0.00020621,2]
[391281156,1760466638540,-300.0,0.00020621,2]
[391281157,1760466638551,-300.0,0.00020621,2]
[391281158,1760466638563,-195.0,0.00020805,2]
[391281159,1760466638572,-433.34,0.00020913,2]
[391281160,1760466638582,-273.83452591,0.00021,2]
[391281161,1760466638592,-204.8583666,0.00021,2]
[391281162,1760466638602,-160.0,0.00021294,2]
[391281163,1760466638612,-217.5,0.00021405,2]
[391281164,1760466638622,-176.86237132,0.0002142,2]
[391281165,1760466638632,-500.0,0.0002142,2]
[391281166,1760466638642,-500.0,0.0002142,2]
[391281167,1760466638651,-500.0,0.0002142,2]
[391281168,1760466638661,-500.0,0.0002142,2]
[391281169,1760466638670,-207.3155935,0.0002142,2]
[391281170,1760466638680,-500.0,0.0002142,2]
[391281171,1760466638689,-500.0,0.0002142,2]
[391281172,1760466638698,-500.0,0.0002142,2]
[391281173,1760466638708,-500.0,0.0002142,2]
[391281174,1760466638718,-500.0,0.0002142,2]
[391281175,1760466638727,-500.0,0.0002142,2]
[391281176,1760466638739,-500.0,0.0002142,2]
[391281177,1760466638748,-500.0,0.0002142,2]
[391281178,1760466638761,-500.0,0.0002142,2]
[391281179,1760466638770,-458.28174848,0.0002142,2]
[391281180,1760466638780,-500.0,0.0002142,2]
[391281181,1760466638790,-500.0,0.0002142,2]
[391281182,1760466638799,-500.0,0.0002142,2]
[391281183,1760466638928,-500.0,0.0002142,2]
[391281184,1760466638939,-500.0,0.0002142,2]
[391281185,1760466638949,-500.0,0.0002142,2]
[391281186,1760466638959,-500.0,0.0002142,2]
[391281187,1760466638968,-500.0,0.0002142,2]
[391281188,1760466638977,-500.0,0.0002142,2]
[391281189,1760466638987,-500.0,0.0002142,2]
[391281190,1760466638996,-500.0,0.0002142,2]
[391281191,1760466639007,-500.0,0.0002142,2]
[391281192,1760466639016,-500.0,0.0002142,2]
[391281193,1760466639025,-500.0,0.0002142,2]
[391281194,1760466639034,-500.0,0.0002142,2]
[391281195,1760466639043,-500.0,0.0002142,2]
[391281196,1760466639053,-500.0,0.0002142,2]
[391281197,1760466639063,-500.0,0.0002142,2]
[391281198,1760466639072,-500.0,0.0002142,2]
[391281199,1760466639081,-17710.85280974,0.00021421,2]
[391281200,1760466639090,-500.0,0.00021421,2]
[391281201,1760466639099,-600.0,0.00021846,20]
[391281202,1760466639108,-500.0,0.0002185,2]
[391281203,1760466639117,-500.0,0.0002185,2]
[391281204,1760466639127,-500.0,0.0002185,2]
[391281205,1760466639136,-500.0,0.0002185,2]
[391281206,1760466639146,-650.0,0.00021863,2]
[391281207,1760466639156,-500.96617393,0.0002194,2]
[391281208,1760466639165,-500.0,0.0002194,2]
[391281209,1760466639175,-240.0,0.00022005,2]
[391281210,1760466639184,-420.0,0.00022009,2]
[391281211,1760466639194,-1200.0,0.00022114,2]
[391281212,1760466639204,-500.0,0.00022129,2]
[391281213,1760466639214,-500.0,0.00022129,2]
[391281214,1760466639223,-500.0,0.00022129,2]
[391281215,1760466639232,-500.0,0.00022129,2]
[391281216,1760466639242,-279.92923206,0.00022129,2]
[391281217,1760466639253,-500.0,0.00022129,2]
[391281218,1760466639265,-500.0,0.00022129,2]
[391281219,1760466639275,-492.55166942,0.00022129,2]
[391281220,1760466639284,-500.0,0.00022129,2]
[391281221,1760466639294,-160.0,0.00022175,2]
[391281222,1760466639304,-617.43451381,0.00022267,2]
[391281223,1760466639315,-500.0,0.00022338,2]
[391281224,1760466639324,-500.0,0.00022338,2]
[391281225,1760466639334,-500.0,0.00022338,2]
[391281226,1760466639343,-500.0,0.00022338,2]
[391281227,1760466639352,-500.0,0.00022338,2]
[391281228,1760466639362,-500.0,0.00022338,2]
[391281229,1760466639372,-504.23378731,0.00022338,2]
[391281230,1760466639380,-500.0,0.0002245,2]
[391281231,1760466639390,-260.0,0.00022723,2]
[391281232,1760466639402,-866.67,0.00022814,2]
[391281233,1760466639412,-500.0,0.00023175,2]
[391281234,1760466639421,-500.0,0.00023175,2]
[391281235,1760466639430,-500.0,0.00023175,2]
[391281236,1760466639439,-500.0,0.00023175,2]
[391281237,1760466639449,-511.03815848,0.00023175,2]